bitfinex-derivatives/quotes_SOLF0:USTF0_20220110
["timestamp","ask_amount","ask_price","bid_price","bid_amount"]
[1641845915298,3.21921075,132.62,132.59,4.27051445]
[1641845915701,3.21921075,132.61,132.59,4.27051445]
[1641845916101,35.47985152,132.68,132.6,30.03313268]
[1641845916300,35.47985152,132.68,132.65,20.0]
[1641845916502,35.47985152,132.68,132.67,20.0]
[1641845916903,13.47985152,132.68,132.67,20.0]
[1641845917204,2.75767578,132.71,132.67,20.0]
[1641845917403,2.75767578,132.71,132.67,24.26749632]
[1641845917802,2.27888107,132.7,132.68,4.26749632]
[1641845918003,2.27888107,132.7,132.68,12.55949632]
[1641845918603,2.27888107,132.7,132.69,20.0]
[1641845918803,27.66479,132.73,132.69,30.15049632]
[1641845919102,27.66479,132.73,132.71,20.0]
[1641845920203,27.66479,132.73,132.72,4.26613374]
[1641845920604,4.0,132.8,132.72,4.26613374]
[1641845920806,27.66479,132.78,132.72,4.26613374]
[1641845921505,2.74383955,132.77,132.72,4.26613374]
[1641845922206,27.66479,132.78,132.72,4.26613374]
[1641845922408,27.66479,132.78,132.73,20.0]
[1641845922806,27.66479,132.78,132.74,4.26613374]
[1641845923406,27.66479,132.8,132.74,4.26613374]
[1641845923807,27.66479,132.8,132.74,24.26613374]
[1641845924008,27.66479,132.8,132.76,20.0]
[1641845924207,27.66479,132.8,132.76,26.791]
[1641845924809,27.66479,132.82,132.76,26.791]
[1641845925011,4.0,132.8,132.76,6.791]
[1641845925209,31.66479,132.82,132.76,6.791]
[1641845925811,4.0,132.81,132.76,6.791]
[1641845926010,4.0,132.81,132.74,1.881]
[1641845926211,27.66479,132.82,132.73,35.57289022]
[1641845926411,4.0,132.81,132.73,35.57289022]
[1641845926612,2.73485669,132.8,132.73,35.57289022]
[1641845926813,2.73485669,132.8,132.74,4.26604907]
[1641845927517,2.73485669,132.81,132.74,4.26604907]
[1641845927714,2.73485669,132.81,132.74,24.26604907]
[1641845928116,4.0,132.8,132.75,4.26604907]
[1641845928317,2.73485669,132.81,132.75,4.26604907]
[1641845928517,2.73485669,132.81,132.75,8.488]
[1641845929119,31.66479,132.82,132.75,8.488]
[1641845929825,31.66479,132.82,132.74,20.0]
[1641845930021,39.60179,132.82,132.74,20.0]
[1641845930221,39.60179,132.82,132.75,4.2657018]
[1641845930222,2.73352997,132.81,132.75,4.2657018]
[1641845930423,6.73352997,132.81,132.75,4.2657018]
[1641845930621,4.0,132.8,132.75,4.2657018]
[1641845930822,31.66479,132.8,132.75,4.2657018]
[1641845931028,31.66479,132.8,132.74,4.2657018]
[1641845931228,27.66479,132.8,132.74,4.2657018]
[1641845931424,31.66479,132.8,132.73,4.2657018]
[1641845931624,27.66479,132.8,132.73,4.2657018]
[1641845934328,34.53479,132.8,132.73,4.2657018]
[1641845934529,4.0,132.75,132.73,1.8e-06]
[1641845934729,27.66479,132.74,132.73,1.8e-06]
[1641845934930,27.66479,132.74,132.69,1.8e-06]
[1641845935530,27.66479,132.74,132.67,1.883]
[1641845935731,27.66479,132.74,132.66,21.883]
[1641845936130,2.65842381,132.73,132.67,4.26686839]
[1641845936831,10.53942381,132.73,132.67,4.26686839]
[1641845937433,2.65842381,132.72,132.67,4.26686839]
[1641845937836,4.0,132.7,132.66,4.26686839]
[1641845938035,6.65842381,132.71,132.66,4.26686839]
[1641845938435,2.65842381,132.69,132.66,4.26686839]
[1641845938834,2.65842381,132.68,132.63,24.26686839]
[1641845939037,2.65842381,132.68,132.65,20.0]
[1641845939236,27.66479,132.7,132.65,20.0]
[1641845939437,27.66479,132.7,132.66,1.883]
[1641845939638,1.80614837,132.69,132.66,4.26686839]
[1641845940239,1.80614837,132.69,132.65,4.26686839]
[1641845941842,1.80614837,132.69,132.63,24.26686839]
[1641845942341,1.80614837,132.69,132.64,4.26686839]
[1641845944544,1.80614837,132.69,132.65,20.0]
[1641845944743,4.0,132.77,132.67,20.0]
[1641845945043,46.22890296,132.76,132.68,1.883]
[1641845945243,42.22890296,132.76,132.68,1.883]
[1641845945443,6.65750329,132.75,132.68,6.14986839]
[1641845945645,2.65750329,132.75,132.68,6.14986839]
[1641845945845,5.41581856,132.75,132.68,4.26686839]
[1641845946243,6.65750329,132.74,132.68,4.26686839]
[1641845946444,2.65750329,132.74,132.68,4.26686839]
[1641845946644,2.65750329,132.73,132.68,4.26686839]
[1641845946844,5.41581856,132.73,132.68,4.26686839]
[1641845947044,5.41581856,132.73,132.67,6.14986839]
[1641845947446,2.65750329,132.72,132.68,4.26686839]
[1641845947645,2.65750329,132.72,132.68,24.26686839]
[1641845947845,0.10081856,132.72,132.69,20.0]
[1641845948045,43.58465935,132.74,132.71,20.0]
[1641845948346,15.91986935,132.74,132.72,1.883]
[1641845948545,58.14877231,132.77,132.72,7.907]
[1641845948746,15.91986935,132.77,132.72,7.907]
[1641845949346,1.85954332,132.76,132.73,4.26570872]
[1641845949948,1.85954332,132.76,132.75,20.0]
[1641845950146,15.91986935,132.78,132.75,26.197]
[1641845950346,15.91986935,132.78,132.75,6.197]
[1641845950948,15.91986935,132.81,132.75,6.197]
[1641845951546,15.91986935,132.81,132.74,21.883]
[1641845951748,19.91986935,132.81,132.76,4.26494233]
[1641845951946,19.91986935,132.81,132.76,10.45994233]
[1641845952147,19.91986935,132.81,132.76,6.195]
[1641845952747,15.91986935,132.81,132.77,4.26494233]
[1641845953348,15.91986935,132.8,132.77,4.26494233]
[1641845953549,15.91986935,132.8,132.75,4.26494233]
[1641845953748,15.91986935,132.8,132.76,20.0]
[1641845953949,15.91986935,132.8,132.76,25.802]
[1641845954350,15.91986935,132.81,132.76,25.802]
[1641845954652,15.91986935,132.81,132.77,4.26494233]
[1641845955049,19.91986935,132.81,132.77,4.26494233]
[1641845955249,4.0,132.81,132.77,4.26494233]
[1641845955449,47.58465935,132.82,132.77,4.26494233]
[1641845955650,47.58465935,132.82,132.74,4.26494233]
[1641845955950,4.0,132.81,132.74,4.26494233]
[1641845956151,19.91986935,132.81,132.74,4.26494233]
[1641845956749,15.91986935,132.81,132.74,4.26494233]
[1641845956950,15.91986935,132.81,132.74,24.26494233]
[1641845957151,15.91986935,132.81,132.75,1.881]
[1641845957551,15.91986935,132.81,132.76,4.26494233]
[1641845957752,43.58465935,132.82,132.76,10.23394233]
[1641845957952,43.58465935,132.82,132.76,30.23394233]
[1641845958154,47.58465935,132.82,132.76,30.23394233]
[1641845958352,47.58465935,132.82,132.77,4.26494233]
[1641845958755,4.0,132.81,132.77,4.26494233]
[1641845959354,19.91986935,132.81,132.77,4.26494233]
[1641845959555,19.91986935,132.81,132.75,4.26494233]
[1641845959956,15.91986935,132.81,132.75,4.26494233]
[1641845960159,19.91986935,132.81,132.75,4.26494233]
[1641845961756,19.91986935,132.81,132.75,24.26494233]
[1641845962158,19.91986935,132.81,132.76,4.26494233]
[1641845962358,4.0,132.81,132.76,4.26494233]
[1641845962559,43.58465935,132.82,132.76,4.26494233]
[1641845962758,47.58465935,132.82,132.76,6.14594233]
[1641845963461,47.58465935,132.82,132.77,4.26494233]
[1641845965263,5.30196661,132.81,132.77,4.26494233]
[1641845965464,21.22183596,132.81,132.77,4.26494233]
[1641845965666,1.30196661,132.8,132.77,4.26494233]
[1641845966267,1.30196661,132.8,132.75,24.26494233]
[1641845966467,1.30196661,132.8,132.77,4.0]
[1641845966667,1.30196661,132.8,132.78,4.26494233]
[1641845966966,3.596e-05,132.81,132.79,25.881]
[1641845967167,3.596e-05,132.81,132.8,4.0]
[1641845967367,42.22890296,132.84,132.8,12.962]
[1641845967568,18.32318167,132.91,132.83,20.0]
[1641845967569,32.65052849,132.89,132.83,20.0]
[1641845967767,32.65052849,132.89,132.83,29.39]
[1641845967968,32.65052849,132.89,132.84,21.881]
[1641845968172,1.03937117,132.88,132.84,26.14339982]
[1641845968369,1.03937117,132.88,132.87,20.0]
[1641845968568,7.117e-05,132.88,132.87,26.133]
[1641845969173,4.0,132.94,132.87,26.133]
[1641845969371,4.0,132.94,132.87,6.133]
[1641845970173,0.85706677,132.93,132.88,4.26143927]
[1641845970372,0.85706677,132.93,132.88,24.26143927]
[1641845970573,0.85706677,132.93,132.9,20.0]
[1641845970773,0.85706677,132.93,132.9,28.516]
[1641845971075,0.85706677,132.94,132.9,28.516]
[1641845971474,4.85706677,132.95,132.91,4.26085567]
[1641845971672,0.85706677,132.95,132.91,4.26085567]
[1641845972174,0.85706677,132.94,132.9,8.516]
[1641845972374,0.85706677,132.94,132.9,10.395]
[1641845972675,0.85706677,132.95,132.9,10.395]
[1641845973775,4.85706677,132.95,132.9,10.395]
[1641845973976,4.85706677,132.95,132.88,1.879]
[1641845974175,4.0,132.91,132.83,21.879]
[1641845974375,7.793,132.91,132.83,20.0]
[1641845974674,7.793,132.91,132.85,20.0]
[1641845974874,0.85706677,132.9,132.85,20.0]
[1641845975074,0.85706677,132.9,132.85,21.881]
[1641845975274,0.85706677,132.9,132.86,4.26205839]
[1641845975875,4.85706677,132.92,132.86,4.26205839]
[1641845976478,0.85706677,132.91,132.86,4.26205839]
[1641845977076,4.0,132.88,132.86,4.26205839]
[1641845977677,4.85706677,132.87,132.82,29.54579]
[1641845977880,4.0,132.86,132.8,1.881]
[1641845978078,4.0,132.84,132.77,1.881]
[1641845978277,13.001,132.84,132.75,88.5544]
[1641845978478,4.0,132.83,132.73,27.90814552]
[1641845979080,4.0,132.79,132.74,4.26458593]
[1641845979278,4.0,132.78,132.74,4.26458593]
[1641845979678,4.0,132.75,132.74,4.26458593]
[1641845979879,10.663,132.75,132.74,4.26458593]
[1641845980079,11.68837827,132.75,132.71,4.26458593]
[1641845980480,7.68837827,132.75,132.71,4.26458593]
[1641845980681,1.02537827,132.74,132.68,20.0]
[1641845981180,1.02537827,132.74,132.69,4.26458593]
[1641845981583,27.66479,132.76,132.69,4.26458593]
[1641845982182,1.02537827,132.75,132.67,29.86048662]
[1641845982382,1.02537827,132.75,132.68,1.883]
[1641845982584,1.02537827,132.75,132.68,21.883]
[1641845983582,1.02537827,132.75,132.69,4.26458593]
[1641845983785,1.02537827,132.75,132.7,1.883]
[1641845984388,1.02537827,132.75,132.71,4.26458593]
[1641845985388,1.02537827,132.75,132.7,4.26458593]
[1641845986389,1.02537827,132.75,132.68,24.26458593]
[1641845986590,9.22137827,132.75,132.69,1.883]
[1641845986792,9.22137827,132.75,132.69,4.26458593]
[1641845986990,27.66479,132.7,132.69,4.26458593]
[1641845987190,27.66479,132.7,132.68,4.26458593]
[1641845987191,33.55479,132.7,132.68,4.26458593]
[1641845987792,33.55479,132.7,132.65,28.07874276]
[1641845988393,4.0,132.69,132.65,28.07874276]
[1641845988594,33.55479,132.7,132.65,28.07874276]
[1641845989094,33.55479,132.7,132.64,28.07874276]
[1641845989694,27.66479,132.71,132.65,20.0]
[1641845989895,27.66479,132.71,132.66,1.883]
[1641845990094,27.66479,132.71,132.66,29.96174276]
[1641845990595,27.66479,132.71,132.67,4.26458593]
[1641845991000,27.66479,132.68,132.64,1.883]
[1641845991198,36.27779,132.68,132.59,21.883]
[1641845991398,4.0,132.67,132.59,1.883]
[1641845991696,4.0,132.65,132.57,1.883]
[1641845991898,6.771,132.65,132.53,21.885]
[1641845992096,4.0,132.63,132.53,1.885]
[1641845992297,4.0,132.61,132.54,19.57611924]
[1641845992498,11.775,132.61,132.54,19.57611924]
[1641845992697,4.0,132.6,132.54,19.57611924]
[1641845992899,3.16049702,132.6,132.53,19.57611924]
[1641845993100,3.16049702,132.6,132.57,20.0]
[1641845993298,27.66479,132.61,132.56,1.885]
[1641845993499,27.66479,132.61,132.53,1.885]
[1641845993698,27.66479,132.61,132.52,4.26940064]
[1641845993899,2.30844358,132.6,132.57,4.26940064]
[1641845994502,2.30844358,132.6,132.57,1.885]
[1641845994699,2.30844358,132.6,132.55,1.885]
[1641845994899,27.66479,132.63,132.58,4.26940064]
[1641845995502,1.88124769,132.62,132.56,28.10734851]
[1641845996502,27.66479,132.63,132.56,28.10734851]
[1641845996801,27.66479,132.63,132.57,1.885]
[1641845997004,27.66479,132.63,132.56,35.47434851]
[1641845997202,4.0,132.61,132.56,35.47434851]
[1641845997401,1.88151099,132.62,132.57,4.26940064]
[1641845998002,1.88151099,132.62,132.53,29.99237026]
[1641845998201,1.88151099,132.62,132.53,49.99237026]
[1641845998404,1.88151099,132.62,132.55,20.0]
[1641845998702,1.88151099,132.62,132.56,1.885]
[1641845998903,27.66479,132.63,132.56,1.885]
[1641845998904,27.66479,132.63,132.56,29.99237026]
[1641845999105,27.66479,132.59,132.56,28.10737026]
[1641845999505,27.66479,132.59,132.57,4.26940064]
[1641846000003,27.66479,132.63,132.56,28.997]
[1641846000203,4.0,132.68,132.57,1.885]
[1641846000404,11.23510477,132.69,132.57,21.46760405]
[1641846000604,4.0,132.67,132.57,21.46760405]
[1641846000805,4.0,132.67,132.58,19.58260405]
[1641846001205,4.0,132.65,132.58,19.58260405]
[1641846001505,4.0,132.6,132.58,19.58260405]
[1641846001704,8.045,132.6,132.53,27.66479]
[1641846001905,12.045,132.6,132.49,1.885]
[1641846002106,4.0,132.51,132.47,17.57787635]
[1641846002311,13.112,132.51,132.47,15.69287635]
[1641846002508,4.0,132.5,132.47,15.69287635]
[1641846002705,9.112,132.51,132.47,15.69287635]
[1641846002706,13.112,132.51,132.47,15.69287635]
[1641846003006,13.112,132.51,132.41,21.887]
[1641846003304,27.66479,132.49,132.48,0.96490239]
[1641846003506,31.66479,132.49,132.41,1.887]
[1641846003705,4.0,132.47,132.39,21.887]
[1641846003919,10.192,132.47,132.39,21.887]
[1641846004304,10.192,132.47,132.39,1.887]
[1641846004505,6.192,132.47,132.39,1.887]
[1641846004708,6.192,132.47,132.39,21.887]
[1641846004906,31.66479,132.49,132.39,21.887]
[1641846005206,27.66479,132.46,132.39,1.887]
[1641846005608,27.66479,132.46,132.38,1.887]
[1641846006708,27.66479,132.46,132.39,20.0]
[1641846006908,27.66479,132.46,132.4,1.887]
[1641846007110,27.66479,132.46,132.39,10.21649763]
[1641846007710,27.66479,132.49,132.42,20.0]
[1641846007910,27.66479,132.49,132.42,27.308]
[1641846008110,27.66479,132.49,132.43,1.887]
[1641846008312,27.66479,132.49,132.43,12.10349763]
[1641846008811,27.66479,132.49,132.43,10.21649763]
[1641846009010,27.66479,132.49,132.44,10.21649763]
[1641846009211,27.66479,132.45,132.44,10.21649763]
[1641846009410,27.66479,132.45,132.37,17.57987635]
[1641846009814,4.27386474,132.44,132.37,17.57987635]
[1641846010415,27.66479,132.45,132.37,17.57987635]
[1641846010615,27.66479,132.45,132.37,1.887]
[1641846011216,27.66479,132.45,132.39,20.0]
[1641846011417,27.66479,132.49,132.39,20.0]
[1641846011618,27.66479,132.49,132.4,1.887]
[1641846011819,4.27305205,132.48,132.4,8.003]
[1641846012422,4.27305205,132.48,132.44,20.0]
[1641846012821,4.27305205,132.48,132.44,26.12]
[1641846013021,4.27305205,132.48,132.44,6.12]
[1641846013321,27.66479,132.45,132.42,1.887]
[1641846013521,27.66479,132.45,132.38,1.887]
[1641846013522,33.87779,132.45,132.38,1.887]
[1641846013721,33.87779,132.45,132.37,17.57987635]
[1641846014121,33.87779,132.45,132.38,20.0]
[1641846014322,33.87779,132.45,132.39,1.887]
[1641846014522,27.66479,132.49,132.4,20.0]
[1641846014721,27.66479,132.49,132.41,27.92839999]
[1641846014923,4.0,132.57,132.41,27.92839999]
[1641846015123,4.0,132.54,132.43,20.0]
[1641846015323,4.0,132.52,132.44,1.887]
[1641846015523,4.0,132.52,132.42,1.887]
[1641846015724,4.27257652,132.51,132.42,1.887]
[1641846017229,27.66479,132.5,132.42,1.887]
[1641846017727,4.27257652,132.49,132.42,1.887]
[1641846017928,4.27257652,132.49,132.43,20.0]
[1641846018227,4.27257652,132.49,132.45,20.0]
[1641846018630,29.90385577,132.57,132.46,1.887]
[1641846018832,33.90385577,132.57,132.46,10.597]
[1641846019030,4.0,132.56,132.47,0.85437111]
[1641846019227,4.0,132.55,132.47,0.85437111]
[1641846019428,27.66479,132.54,132.47,0.85437111]
[1641846019929,4.27257652,132.53,132.47,0.85437111]
[1641846021132,4.27257652,132.53,132.46,0.85437111]
[1641846021331,27.66479,132.52,132.46,0.85437111]
[1641846021930,27.66479,132.52,132.44,29.54979]
[1641846021931,4.27257652,132.51,132.45,0.85437111]
[1641846022532,4.27257652,132.51,132.46,21.887]
[1641846022734,4.27257652,132.51,132.46,30.752]
[1641846022933,4.27257652,132.53,132.47,0.85437111]
[1641846023136,4.27257652,132.53,132.47,3.39671156]
[1641846023334,4.27257652,132.53,132.49,27.66479]
[1641846023534,27.66479,132.58,132.51,20.0]
[1641846023734,27.66479,132.58,132.5,1.885]
[1641846024335,27.66479,132.58,132.5,21.885]
[1641846024736,27.66479,132.58,132.5,1.885]
[1641846024935,27.66479,132.58,132.49,37.24479]
[1641846025136,4.27088274,132.57,132.51,1.65756049]
[1641846025537,4.27088274,132.57,132.5,1.65756049]
[1641846027442,4.27088274,132.57,132.49,1.65756049]
[1641846027641,4.27088274,132.57,132.5,1.885]
[1641846027844,15.69287635,132.62,132.52,20.0]
[1641846028044,15.69287635,132.62,132.55,20.0]
[1641846028344,15.69287635,132.62,132.58,20.0]
[1641846028545,15.69287635,132.62,132.6,20.0]
[1641846028742,15.69287635,132.62,132.59,1.885]
[1641846029346,27.66479,132.67,132.6,22.55246178]
[1641846029543,27.66479,132.67,132.62,20.0]
[1641846029746,15.69287635,132.68,132.62,5.824]
[1641846029951,19.69287635,132.68,132.62,5.824]
[1641846030146,19.69287635,132.68,132.58,49.54779]
[1641846030347,19.69287635,132.68,132.58,47.66479]
[1641846030548,27.66479,132.69,132.58,47.66479]
[1641846030746,27.66479,132.69,132.6,20.0]
[1641846030947,4.26852849,132.67,132.6,20.0]
[1641846031147,4.26852849,132.67,132.61,1.883]
[1641846031447,4.26852849,132.68,132.62,20.0]
[1641846031648,7.0206934,132.68,132.62,20.0]
[1641846031856,7.0206934,132.68,132.61,4.43513864]
[1641846032051,8.26852849,132.67,132.63,2.55213864]
[1641846032250,4.0,132.65,132.63,2.55213864]
[1641846032547,6.515,132.65,132.6,2.55213864]
[1641846033254,4.26852849,132.64,132.57,2.55213864]
[1641846033447,27.66479,132.6,132.57,2.55213864]
[1641846033650,34.83079,132.6,132.56,2.55213864]
[1641846033852,7.166,132.6,132.56,2.55213864]
[1641846034051,7.166,132.6,132.55,22.55213864]
[1641846034254,7.166,132.6,132.56,1.885]
[1641846034653,7.166,132.6,132.56,4.43713864]
[1641846034853,19.69287635,132.71,132.56,4.43713864]
[1641846035053,8.67441998,132.81,132.59,20.0]
[1641846035054,4.0,132.68,132.59,20.0]
[1641846035253,4.0,132.68,132.6,1.883]
[1641846035455,27.66479,132.66,132.59,56.87579]
[1641846035653,27.66479,132.66,132.6,2.55213864]
[1641846035854,27.66479,132.66,132.61,1.883]
[1641846036061,4.26844369,132.65,132.61,1.883]
[1641846036257,4.26844369,132.65,132.61,21.883]
[1641846036455,4.26844369,132.65,132.64,20.0]
[1641846036656,3.3035413,132.65,132.64,26.891]
[1641846036856,3.3035413,132.65,132.64,6.891]
[1641846037059,4.0,132.76,132.64,6.891]
[1641846037060,15.69287635,132.73,132.64,6.891]
[1641846037456,27.66479,132.72,132.64,26.891]
[1641846038159,4.26708015,132.71,132.65,3.64986913]
[1641846038857,4.26708015,132.71,132.69,20.0]
[1641846039156,15.69287635,132.75,132.69,26.833]
[1641846039356,57.68236015,132.78,132.69,26.833]
[1641846039357,4.0,132.78,132.69,26.833]
[1641846039658,27.66479,132.75,132.69,26.833]
[1641846039856,27.66479,132.75,132.69,28.716]
[1641846040057,27.66479,132.75,132.69,1.883]
[1641846040258,33.42379,132.75,132.65,21.883]
[1641846040458,4.0,132.73,132.65,20.0]
[1641846040659,4.0,132.7,132.66,4.26705416]
[1641846040859,10.873,132.7,132.66,4.26705416]
[1641846041059,4.0,132.67,132.66,4.26705416]
[1641846041258,5.868,132.67,132.62,15.69287635]
[1641846041459,27.66479,132.66,132.57,27.66479]
[1641846041663,27.66479,132.66,132.58,1.885]
[1641846041860,27.66479,132.66,132.58,21.885]
[1641846042059,27.66479,132.68,132.6,20.0]
[1641846042260,27.66479,132.68,132.61,1.883]
[1641846042460,4.26734395,132.67,132.65,20.0]
[1641846043062,4.26734395,132.71,132.66,3.65014651]
[1641846043263,4.26734395,132.71,132.66,5.53314651]
[1641846043462,4.26734395,132.71,132.66,3.65014651]
[1641846044363,4.26734395,132.71,132.66,23.65014651]
[1641846044764,4.26734395,132.73,132.67,3.65014651]
[1641846044966,4.26734395,132.73,132.68,1.883]
[1641846045165,4.26734395,132.73,132.68,21.883]
[1641846045365,4.26734395,132.73,132.68,1.883]
[1641846045766,8.26734395,132.73,132.69,3.65014651]
[1641846046165,4.26734395,132.72,132.65,3.65014651]
[1641846046566,4.26734395,132.72,132.65,1.883]
[1641846046766,4.26734395,132.72,132.66,20.0]
[1641846047166,4.26734395,132.72,132.66,23.65014651]
[1641846047768,4.26734395,132.72,132.66,3.65014651]
[1641846047967,4.26734395,132.73,132.68,20.0]
[1641846048167,4.26734395,132.73,132.67,5.53314651]
[1641846048369,4.26734395,132.73,132.69,3.65014651]
[1641846048667,4.26734395,132.73,132.68,3.65014651]
[1641846049273,8.26734395,132.73,132.68,3.65014651]
[1641846049470,27.66479,132.69,132.62,1.883]
[1641846049669,35.43379,132.69,132.6,1.883]
[1641846050068,35.43379,132.69,132.62,20.0]
[1641846050269,35.43379,132.69,132.65,20.0]
[1641846050470,7.769,132.69,132.65,20.0]
[1641846050669,4.26716064,132.68,132.65,20.0]
[1641846051071,4.26716064,132.68,132.66,2.88323131]
[1641846051469,27.66479,132.69,132.66,2.88323131]
[1641846052070,4.26716064,132.68,132.64,2.88323131]
[1641846052772,4.26716064,132.68,132.65,20.0]
[1641846053172,4.26716064,132.68,132.66,1.883]
[1641846053374,4.26716064,132.7,132.66,4.76623131]
[1641846053771,31.93195064,132.74,132.68,20.0]
[1641846053973,31.93195064,132.74,132.68,1.883]
[1641846054272,4.26716064,132.73,132.69,2.88323131]
[1641846054874,12.93816064,132.73,132.69,2.88323131]
[1641846055073,12.93816064,132.73,132.68,2.88323131]
[1641846055774,4.26716064,132.72,132.68,2.88323131]
[1641846055976,8.26716064,132.72,132.68,2.88323131]
[1641846056374,4.26716064,132.71,132.64,3.131e-05]
[1641846056973,19.44476366,132.72,132.64,20.0]
[1641846057173,19.44476366,132.72,132.65,1.883]
[1641846057373,8.671,132.73,132.65,1.883]
[1641846057573,27.66479,132.72,132.65,1.883]
[1641846057773,31.93175682,132.72,132.66,2.27754255]
[1641846058175,31.93175682,132.72,132.67,20.0]
[1641846058377,7.02101517,132.71,132.68,1.883]
[1641846058775,4.26696682,132.7,132.68,1.883]
[1641846059275,4.26696682,132.7,132.69,2.27724594]
[1641846059675,4.26696682,132.71,132.69,2.27724594]
[1641846060877,4.26696682,132.71,132.63,17.57587635]
[1641846061078,11.72696682,132.71,132.63,17.57587635]
[1641846061277,2.7618384,132.7,132.63,1.883]
[1641846061677,27.66479,132.69,132.63,1.883]
[1641846062178,4.26761504,132.68,132.63,1.883]
[1641846062378,4.26761504,132.68,132.64,2.55600945]
[1641846062379,12.83261504,132.68,132.64,2.55600945]
[1641846062977,12.83261504,132.68,132.63,1.883]
[1641846062978,16.83261504,132.68,132.63,1.883]
[1641846063178,4.0,132.67,132.61,15.69287635]
[1641846063378,8.26761504,132.67,132.6,15.69287635]
[1641846063579,27.66479,132.64,132.6,15.69287635]
[1641846064277,4.26761504,132.63,132.6,15.69287635]
[1641846064479,4.26761504,132.63,132.6,2.55671935]
[1641846065079,4.26761504,132.66,132.62,20.0]
[1641846065278,4.26761504,132.66,132.63,1.883]
[1641846065681,4.26761504,132.66,132.63,10.022]
[1641846065881,15.69287635,132.67,132.64,20.0]
[1641846066086,15.69287635,132.71,132.65,1.883]
[1641846066583,4.26699388,132.7,132.65,1.883]
[1641846067183,4.26699388,132.7,132.66,20.0]
[1641846067382,4.26699388,132.7,132.65,11.289]
[1641846067582,4.26699388,132.7,132.67,20.0]
[1641846068283,4.26699388,132.7,132.69,20.0]
[1641846068686,4.26699388,132.72,132.69,20.0]
[1641846069583,4.26699388,132.73,132.69,20.0]
[1641846069788,15.69287635,132.74,132.71,20.0]
[1641846069985,15.69287635,132.74,132.7,11.91138829]
[1641846070185,15.69287635,132.74,132.71,20.0]
[1641846070385,15.69287635,132.74,132.72,1.883]
[1641846070586,15.69287635,132.74,132.72,11.138]
[1641846070785,15.69287635,132.74,132.73,20.0]
[1641846070986,15.69287635,132.79,132.73,20.0]
[1641846071784,15.69287635,132.79,132.73,47.66479]
[1641846072184,43.35766635,132.8,132.74,1.883]
[1641846072387,43.35766635,132.8,132.75,20.0]
[1641846073389,2.75770526,132.79,132.75,26.948]
[1641846073789,2.75770526,132.79,132.75,6.948]
[1641846073989,63.25225751,132.88,132.78,4.0]
[1641846074188,63.25225751,132.88,132.81,20.0]
[1641846074388,63.25225751,132.88,132.82,1.881]
[1641846075189,42.16236015,132.93,132.83,20.0]
[1641846075391,13.16236015,132.93,132.85,20.0]
[1641846075590,13.16236015,132.93,132.85,26.198]
[1641846075888,27.66479,132.9,132.85,6.198]
[1641846076690,21.93691476,132.89,132.85,6.198]
[1641846076893,21.93691476,132.89,132.84,7.90319038]
[1641846077191,4.0,132.86,132.79,1.881]
[1641846077392,8.064,132.86,132.79,1.881]
[1641846077692,27.66479,132.82,132.8,1.79551972]
[1641846077891,36.79379,132.82,132.8,1.79551972]
[1641846078091,9.129,132.82,132.77,21.79551972]
[1641846078291,9.129,132.82,132.78,1.881]
[1641846078491,9.129,132.82,132.78,3.67651972]
[1641846078893,27.66479,132.84,132.79,1.79551972]
[1641846079291,27.66479,132.84,132.79,21.79551972]
[1641846079692,27.66479,132.84,132.8,3.67651972]
[1641846080093,27.66479,132.84,132.81,1.79551972]
[1641846080292,27.66479,132.87,132.81,1.79551972]
[1641846081094,31.66479,132.87,132.81,1.79551972]
[1641846081294,4.0,132.86,132.81,1.79551972]
[1641846081496,4.0,132.85,132.77,26.02520483]
[1641846081694,4.0,132.85,132.78,1.881]
[1641846081894,27.66479,132.85,132.78,3.67692714]
[1641846082594,27.66479,132.85,132.79,1.79592714]